bitfinex/quotes_ETHUSD_20230119
["timestamp","ask_amount","ask_price","bid_price","bid_amount"]
[1674152897769,3.33389607,1534.1,1533.9,2.48602459]
[1674152897976,2.31198512,1534.1,1533.9,2.48602459]
[1674152898396,2.80088512,1534.1,1533.9,2.48602459]
[1674152899298,2.80088512,1534.1,1533.9,2.48384163]
[1674152899660,9.85253607,1534.1,1533.9,2.48384163]
[1674152899919,8.89662512,1534.1,1533.9,2.48384163]
[1674152900137,9.91853607,1534.1,1533.9,2.48384163]
[1674152900386,8.89662512,1534.1,1533.9,2.48165876]
[1674152900657,8.89662512,1534.1,1533.7,0.066]
[1674152900658,1.5,1534.0,1533.7,0.066]
[1674152900985,8.0189,1534.0,1533.8,3.29174759]
[1674152901194,6.5849,1534.0,1533.8,3.29174759]
[1674152902486,0.066,1534.0,1533.8,3.29174759]
[1674152902629,6.71535115,1534.1,1533.8,3.29174759]
[1674152903674,6.71535115,1534.1,1533.9,3.29174759]
[1674152904411,0.19671115,1534.1,1533.9,3.29174759]
[1674152904622,0.13071115,1534.1,1533.9,3.29174759]
[1674152905259,0.13071115,1534.1,1533.9,3.28956472]
[1674152906359,0.13071115,1534.1,1534.0,3.29174759]
[1674152907167,0.13071115,1534.1,1534.0,3.28956481]
[1674152908195,0.13071115,1534.1,1534.0,3.28738203]
[1674152912413,0.13071115,1534.1,1534.0,3.28083369]
[1674152912619,8.14918115,1534.1,1533.9,0.066]
[1674152912903,8.21518115,1534.1,1533.9,3.29174759]
[1674152914300,14.73365115,1534.1,1533.9,3.29174759]
[1674152914742,14.73365115,1534.1,1533.8,0.066]
[1674152914952,6.51941,1533.9,1533.6,9.0413]
[1674152915194,13.10482,1533.9,1533.6,3.35774759]
[1674152915366,8.01987,1533.8,1533.6,3.29174759]
[1674152915730,8.08587,1533.8,1533.6,3.29174759]
[1674152915876,6.58587,1533.8,1533.6,3.29174759]
[1674152917562,8.08587,1533.8,1533.6,3.29174759]
[1674152918428,14.60574,1533.8,1533.5,0.066]
[1674152918640,15.09474,1533.8,1533.5,3.29174759]
[1674152918872,1.5,1533.7,1533.5,3.29174759]
[1674152919066,14.5407,1533.7,1533.5,3.29174759]
[1674152919237,14.6067,1533.7,1533.5,3.29174759]
[1674152919658,13.1067,1533.7,1533.5,3.29174759]
[1674152920947,1.5,1533.6,1533.5,3.29174759]
[1674152921162,1.5,1533.6,1533.4,0.066]
[1674152921390,14.5412,1533.6,1533.2,0.066]
[1674152921603,14.6072,1533.6,1533.3,3.29174759]
[1674152921917,13.5963,1533.6,1533.3,3.29174759]
[1674152923353,7.0757,1533.6,1533.4,3.29174759]
[1674152923973,0.066,1533.6,1533.5,3.29174759]
[1674152924182,0.066,1533.7,1533.5,3.29174759]
[1674152924400,7.0748,1533.8,1533.5,3.29174759]
[1674152925033,6.5858,1533.8,1533.5,3.29174759]
[1674152925287,0.066,1533.8,1533.6,3.29174759]
[1674152925492,7.07441,1533.9,1533.7,3.29174759]
[1674152925989,7.07441,1533.9,1533.8,3.29174759]
[1674152925990,0.066,1533.9,1533.8,3.29174759]
[1674152926183,0.066,1534.0,1533.8,10.14041235]
[1674152926393,0.13071115,1534.1,1533.9,3.29174759]
[1674152926612,0.13071115,1534.1,1534.0,3.29174759]
[1674152926865,0.13071115,1534.1,1534.0,3.62092235]
[1674152927082,0.13071115,1534.1,1534.0,3.29174759]
[1674152933538,0.81198512,1534.1,1534.0,3.29174759]
[1674152934216,0.13071115,1534.1,1534.0,3.29174759]
[1674152935821,0.81198512,1534.1,1534.0,3.29174759]
[1674152936036,1.4632203,1534.1,1534.0,3.29174759]
[1674152936224,0.13071115,1534.1,1534.0,3.29174759]
[1674152937410,0.13071115,1534.1,1534.0,4.93133435]
[1674152938008,0.13071115,1534.1,1534.0,3.29174759]
[1674152956666,0.00212346,1534.0,1533.9,0.066]
[1674152956811,0.87112346,1534.0,1533.8,0.066]
[1674152957025,0.87112346,1534.0,1533.8,3.29174759]
[1674152959023,1.55239743,1534.0,1533.8,3.29174759]
[1674152960026,3.22577897,1534.0,1533.8,3.29174759]
[1674152960180,0.68127397,1533.9,1533.8,3.29174759]
[1674152960630,8.13749743,1534.0,1533.8,3.29174759]
[1674152961615,6.58722346,1534.0,1533.8,3.29174759]
[1674152961952,6.58722346,1534.0,1533.8,3.28850995]
[1674152962124,7.26849743,1534.0,1533.8,3.28850995]
[1674152963014,0.68127397,1533.9,1533.8,3.28850995]
[1674152963435,1.33305963,1533.9,1533.8,3.28850995]
[1674152963646,0.68127397,1533.9,1533.8,3.28850995]
[1674152963896,7.60913441,1534.0,1533.8,3.28850995]
[1674152963897,8.29040838,1534.0,1533.8,3.28850995]
[1674152964180,1.33354917,1533.9,1533.8,3.28850995]
[1674152966626,8.97168235,1534.0,1533.8,3.28850995]
[1674152966627,8.29040838,1534.0,1533.8,3.28850995]
[1674152967339,1.33342198,1533.9,1533.8,3.28850995]
[1674152968753,1.33342198,1533.9,1533.7,0.066]
[1674152968904,2.35533293,1533.9,1533.7,3.29174759]
[1674152969279,8.87466293,1533.9,1533.7,3.29174759]
[1674152969595,8.28851492,1533.9,1533.7,3.29174759]
[1674152969800,7.60724095,1533.9,1533.7,3.29174759]
[1674152972902,7.60724095,1533.9,1533.6,19.1767]
[1674152972903,6.58533,1533.9,1533.6,19.1767]
[1674152973134,7.60724095,1533.9,1533.6,22.46844759]
[1674152974543,6.58533,1533.9,1533.6,22.46844759]
[1674152974741,7.60724095,1533.9,1533.6,22.46844759]
[1674152974952,6.58533,1533.9,1533.6,22.46844759]
[1674152976687,7.60724095,1533.9,1533.6,22.46844759]
[1674152977386,6.58533,1533.9,1533.6,22.46844759]
[1674152980658,0.066,1533.9,1533.8,6.51975]
[1674152980794,0.002,1533.9,1533.8,17.89724759]
[1674152981012,0.00212346,1534.0,1533.8,25.75803332]
[1674152981234,0.00212346,1534.0,1533.9,20.27319092]
[1674152981446,0.00212346,1534.0,1533.9,20.33919092]
[1674152983738,0.00212346,1534.0,1533.9,23.8163179]
[1674152983950,0.00212346,1534.0,1533.9,25.9639036]
[1674152984179,0.00212346,1534.0,1533.9,30.37209995]
[1674152984664,0.00212346,1534.0,1533.9,17.33345995]
[1674152984822,0.00212346,1534.0,1533.9,15.87123403]
[1674152985040,0.00212346,1534.0,1533.9,31.52505403]
[1674152985339,0.00212346,1534.0,1533.9,32.30563973]
[1674152985519,0.00212346,1534.0,1533.9,38.82633828]
[1674152985726,0.00212346,1534.0,1533.9,35.32768159]
[1674152985941,0.00212346,1534.0,1533.9,34.5478179]
[1674152986192,0.00212346,1534.0,1533.9,34.07069092]
[1674152987409,0.00212346,1534.0,1533.9,36.0082745]
[1674152987849,0.00212346,1534.0,1533.9,35.32663428]
[1674152988457,0.00212346,1534.0,1533.9,34.54709463]
[1674152989247,0.00212346,1534.0,1533.9,34.07069092]
[1674152989829,0.00212346,1534.0,1533.9,32.47369092]
[1674152990034,0.13071115,1534.1,1534.0,1.59847607]
[1674152990283,0.13071115,1534.1,1534.0,17.02734036]
[1674152990487,0.13071115,1534.1,1534.0,9.87812366]
[1674152991930,0.13071115,1534.1,1534.0,10.04912366]
[1674152993727,0.13071115,1534.1,1534.0,11.54912366]
[1674152993944,0.13071115,1534.1,1534.0,10.04912366]
[1674152994566,0.13071115,1534.1,1534.0,10.04712366]
[1674152994778,0.13071115,1534.1,1534.0,10.04912366]
[1674152996486,0.13071115,1534.1,1534.0,13.04912366]
[1674152996708,0.13071115,1534.1,1534.0,16.21941803]
[1674152999091,0.13071115,1534.1,1534.0,24.10531803]
[1674153005216,0.13071115,1534.1,1534.0,27.60393259]
[1674153005435,0.00071115,1534.1,1534.0,28.30965171]
[1674153005607,0.00071115,1534.1,1534.0,24.33531803]
[1674153012018,0.00071115,1534.1,1534.0,24.10531803]
[1674153013217,0.00071115,1534.1,1534.0,28.8566597]
[1674153013533,0.00071115,1534.1,1534.0,29.0866597]
[1674153013699,0.00071115,1534.1,1534.0,25.58908834]
[1674153014344,0.00071115,1534.1,1534.0,24.81094039]
[1674153014524,0.00071115,1534.1,1534.0,25.58957597]
[1674153014734,0.00071115,1534.1,1534.0,24.81094039]
[1674153015439,0.00071115,1534.1,1534.0,24.80946432]
[1674153016019,0.00071115,1534.1,1534.0,24.33384196]
[1674153016486,0.00071115,1534.1,1534.0,24.81010331]
[1674153017593,0.00071115,1534.1,1534.0,22.73684196]
[1674153017804,0.00071115,1534.1,1534.0,16.56654759]
[1674153018077,0.00071115,1534.1,1534.0,10.04764759]
[1674153019428,0.00071115,1534.1,1534.0,11.54764759]
[1674153019647,0.00071115,1534.1,1534.0,10.04764759]
[1674153020017,0.00071115,1534.1,1534.0,10.04564759]
[1674153020223,0.00071115,1534.1,1534.0,10.04764759]
[1674153020913,0.78971115,1534.1,1534.0,0.237]
[1674153021063,0.88293782,1534.1,1534.0,0.171]
[1674153022334,0.78971115,1534.1,1534.0,0.171]
[1674153025436,0.00071115,1534.1,1534.0,0.171]
[1674153026300,0.78971115,1534.1,1534.0,0.171]
[1674153026959,7.30818115,1534.1,1534.0,0.171]
[1674153027171,7.37418115,1534.1,1534.0,0.16715434]
[1674153027590,7.86308115,1534.1,1534.0,0.16715434]
[1674153027800,7.37418115,1534.1,1534.0,0.16715434]
[1674153028232,13.89265115,1534.1,1534.0,0.16715434]
[1674153028444,13.89065115,1534.1,1534.0,0.16715434]
[1674153028658,16.59115807,1534.1,1534.0,0.16715434]
[1674153029273,17.41909183,1534.1,1534.0,5.434e-05]
[1674153029542,17.41909183,1534.1,1533.5,0.066]
[1674153029543,19.55876,1533.9,1533.5,0.118]
[1674153029851,1.845,1533.8,1533.5,3.40974759]
[1674153030122,7.87597,1533.8,1533.5,3.40974759]
[1674153030290,7.94197,1533.8,1533.5,3.40974759]
[1674153032517,0.066,1533.8,1533.6,3.29174759]
[1674153032660,0.489,1534.0,1533.7,9.81191759]
[1674153032869,16.26318115,1534.1,1533.8,3.29174759]
[1674153033130,7.07408115,1534.1,1533.8,3.29174759]
[1674153033931,7.07408115,1534.1,1533.9,0.11]
[1674153034551,7.07408115,1534.1,1534.0,3.29174759]
[1674153034552,0.55561115,1534.1,1534.0,3.29174759]
[1674153034767,0.00071115,1534.1,1534.0,3.29174759]
[1674153037181,0.00071115,1534.1,1534.0,18.13015835]
[1674153037434,0.00071115,1534.1,1534.0,18.19615835]
[1674153049055,0.00071115,1534.1,1534.0,9.87664759]
[1674153049953,0.00071115,1534.1,1534.0,11.37664759]
[1674153050315,0.00071115,1534.1,1534.0,9.87664759]
[1674153051527,0.00071115,1534.1,1534.0,11.37664759]
[1674153052453,0.00071115,1534.1,1534.0,17.89554759]
[1674153052671,0.14255555,1534.2,1534.1,1.59985354]
[1674153052887,0.14255555,1534.2,1534.1,22.42854113]
[1674153053097,0.14255555,1534.2,1534.1,22.49454113]
[1674153053641,0.14255555,1534.2,1534.1,32.12074113]
[1674153054068,0.00055555,1534.2,1534.1,38.2381077]
[1674153054372,0.00055555,1534.2,1534.1,44.6924047]
[1674153054592,0.00055555,1534.2,1534.1,54.20699047]
[1674153054745,0.16295908,1534.7,1534.2,1.502]
[1674153054951,0.16295908,1534.7,1534.5,3.29174759]
[1674153055201,0.16295908,1534.7,1534.6,25.84079759]
[1674153055417,0.16295908,1534.7,1534.6,25.90679759]
[1674153058949,0.16295908,1534.7,1534.6,32.42314759]
[1674153061997,0.1090136,1534.7,1534.6,37.29014759]
[1674153062251,0.1090136,1534.7,1534.6,37.66786235]
[1674153063035,0.1090136,1534.7,1534.6,41.16611942]
[1674153063359,0.1090136,1534.7,1534.6,37.66786235]
[1674153065244,0.1090136,1534.7,1534.6,37.89786235]
[1674153070303,1.36e-05,1534.7,1534.6,37.89786235]
[1674153070514,0.00039364,1534.8,1534.6,41.78048494]
[1674153070775,0.16638004,1534.9,1534.8,1.367]
[1674153071080,0.16638004,1534.9,1534.8,35.31474759]
[1674153071237,0.00038004,1534.9,1534.8,35.76581267]
[1674153071448,0.00038004,1534.9,1534.8,39.26131759]
[1674153071744,0.00038004,1534.9,1534.8,44.21604278]
[1674153071888,0.00038004,1534.9,1534.8,44.21984447]
[1674153072080,0.00038004,1534.9,1534.8,40.72053786]
[1674153075025,0.00038004,1534.9,1534.8,40.33547278]
[1674153076284,0.00046359,1535.0,1534.8,43.83547278]
[1674153076491,0.00046359,1535.0,1534.9,13.92229487]
[1674153076762,0.00046359,1535.0,1534.9,30.01845487]
[1674153077077,0.00046359,1535.0,1534.9,26.51845487]
[1674153080585,0.00046359,1535.0,1534.9,25.15145487]
[1674153083742,0.00046359,1535.0,1534.9,23.42145487]
[1674153085109,0.00046359,1535.0,1534.9,23.65145487]
[1674153091856,0.00046359,1535.0,1534.9,23.42145487]
[1674153097107,0.00046359,1535.0,1534.9,24.90627958]
[1674153098933,0.18940849,1535.1,1535.0,16.12932214]
[1674153099142,0.18940849,1535.1,1535.0,26.5906299]
[1674153099619,0.18940849,1535.1,1535.0,25.0906299]
[1674153099768,0.18940849,1535.1,1535.0,19.39006973]
[1674153101932,0.18940849,1535.1,1535.0,19.86645878]
[1674153102440,0.18940849,1535.1,1535.0,20.64585922]
[1674153102866,0.18940849,1535.1,1535.0,19.86645878]
[1674153103041,0.18940849,1535.1,1535.0,20.645832]
[1674153103253,0.18940849,1535.1,1535.0,23.43892114]
[1674153103679,0.18940849,1535.1,1535.0,24.21835491]
[1674153104001,0.1602355,1535.2,1535.1,1.67774958]
[1674153104213,0.1602355,1535.2,1535.1,22.38484467]
[1674153104544,0.1602355,1535.2,1535.1,23.57222736]
[1674153104720,0.1602355,1535.2,1535.1,27.86309832]
[1674153104931,0.1602355,1535.2,1535.1,28.54377701]
[1674153105149,0.1602355,1535.2,1535.1,27.52132964]
[1674153105610,0.1602355,1535.2,1535.1,26.84065095]
[1674153105758,0.1602355,1535.2,1535.1,27.52132964]
[1674153106307,0.1602355,1535.2,1535.1,28.54377701]
[1674153106511,0.1602355,1535.2,1535.1,27.86309832]
[1674153107124,0.1602355,1535.2,1535.1,28.54351534]
[1674153107595,0.1602355,1535.2,1535.1,27.52106797]
[1674153108291,0.1602355,1535.2,1535.1,28.54351534]
[1674153108653,0.1602355,1535.2,1535.1,27.52106797]
[1674153110649,0.1602355,1535.2,1535.1,25.34065095]
[1674153110809,0.1602355,1535.2,1535.1,25.11065095]
[1674153111017,0.1602355,1535.2,1535.1,22.11065095]
[1674153111223,0.1602355,1535.2,1535.1,17.81977999]
[1674153111434,0.1602355,1535.2,1535.1,17.04034622]
[1674153111687,0.1602355,1535.2,1535.1,16.56395717]
[1674153112315,0.1602355,1535.2,1535.1,10.04972717]
[1674153113028,0.1602355,1535.2,1535.1,3.53549717]
[1674153113223,1.62749148,1535.2,1535.1,3.46949717]
[1674153114638,0.26049148,1535.2,1535.1,3.46949717]
[1674153118524,0.26049148,1535.2,1535.1,3.29174759]
[1674153127954,0.26049148,1535.2,1535.0,0.066]
[1674153128231,0.26049148,1535.2,1535.0,3.29174759]
[1674153128797,1.62249148,1535.2,1535.0,3.29174759]
[1674153129053,1.5222355,1535.2,1535.0,3.29174759]
[1674153131009,1.5222355,1535.2,1535.0,3.28880752]
[1674153131736,2.20432425,1535.2,1535.0,3.28880752]
[1674153132422,1.5222355,1535.2,1535.0,3.28880752]
[1674153134155,0.1602355,1535.2,1535.0,3.28880752]
[1674153134779,0.1602355,1535.2,1535.1,3.29174759]
[1674153137967,0.1602355,1535.2,1535.1,3.288894]
[1674153138529,0.1602355,1535.2,1535.1,9.803124]
[1674153138740,0.1602355,1535.2,1535.1,9.869124]
[1674153139030,0.1602355,1535.2,1535.1,3.354894]
[1674153139238,0.1602355,1535.2,1535.1,5.7758234]
[1674153139467,0.1602355,1535.2,1535.1,5.8418234]
[1674153139703,0.1602355,1535.2,1535.1,4.3418234]
[1674153139899,0.1602355,1535.2,1535.1,5.7758234]
[1674153140219,0.1602355,1535.2,1535.1,4.3418234]
[1674153140393,0.1602355,1535.2,1535.1,4.2758234]
[1674153143739,0.1602355,1535.2,1535.1,4.27308925]
[1674153144120,0.1602355,1535.2,1535.1,10.78731925]
[1674153144310,0.1602355,1535.2,1535.1,20.36754925]
[1674153147514,0.1602355,1535.2,1535.1,21.73454925]
[1674153147776,0.1602355,1535.2,1535.1,22.46032301]
[1674153147987,0.1602355,1535.2,1535.1,21.96454925]
[1674153148202,0.1602355,1535.2,1535.1,23.25389553]
[1674153148376,0.1602355,1535.2,1535.1,22.46032784]
[1674153148589,0.1602355,1535.2,1535.1,23.25367911]
[1674153148919,0.1602355,1535.2,1535.1,22.46032784]
[1674153149465,0.1602355,1535.2,1535.1,21.96454925]
[1674153149619,0.1602355,1535.2,1535.1,22.46045416]
[1674153150094,0.1602355,1535.2,1535.1,21.96454925]
[1674153151197,0.1602355,1535.2,1535.1,20.36754925]
[1674153152771,0.1602355,1535.2,1535.1,12.86638985]
[1674153152986,0.1602355,1535.2,1535.1,3.35215985]
[1674153153246,0.1602355,1535.2,1535.1,3.28615985]
[1674153166600,0.1602355,1535.2,1535.0,0.185]
[1674153166954,0.1602355,1535.2,1535.0,0.11594719]
[1674153166955,0.68208875,1535.1,1535.0,0.11594719]
[1674153167148,9.32741452,1535.1,1535.0,0.11594719]
[1674153167360,10.41532547,1535.1,1535.0,0.11594719]
[1674153167529,8.91532547,1535.1,1535.0,0.11594719]
[1674153168318,9.39341452,1535.1,1535.0,0.11594719]
[1674153168903,10.75741452,1535.1,1535.0,0.11594719]
[1674153169738,9.25741452,1535.1,1535.0,0.11594719]
[1674153170367,10.75741452,1535.1,1535.0,0.11594719]
[1674153170610,9.25741452,1535.1,1535.0,0.11594719]
[1674153171019,9.25541452,1535.1,1535.0,0.11594719]
[1674153171231,9.25741452,1535.1,1535.0,0.11594719]
[1674153171420,17.27164452,1535.1,1535.0,0.11594719]
[1674153171670,15.77164452,1535.1,1535.0,0.11594719]
[1674153171861,16.79355547,1535.1,1535.0,0.11594719]
[1674153172058,15.77164452,1535.1,1535.0,0.11594719]
[1674153172267,16.79355547,1535.1,1535.0,0.11594719]
[1674153172472,15.77164452,1535.1,1535.0,0.11594719]
[1674153172679,15.77164452,1535.1,1535.0,0.06594719]
[1674153172948,16.79355547,1535.1,1534.6,50.0095]
[1674153173162,2.33521208,1535.0,1534.6,3.60774759]
[1674153173480,15.89732,1534.9,1534.6,3.54174759]
[1674153173627,15.96332,1534.9,1534.6,3.54174759]
[1674153173848,1.367,1534.7,1534.6,0.25]
[1674153174059,1.5037,1534.7,1534.6,0.25]
[1674153174270,14.53556,1534.7,1534.6,0.25]
[1674153174532,16.40324843,1534.7,1534.3,0.05062983]
[1674153174744,1.364,1534.4,1534.3,0.05062983]
[1674153174929,14.3984,1534.4,1534.3,0.05062983]
[1674153175286,14.4644,1534.4,1534.3,0.05062983]
[1674153182511,1.43,1534.4,1534.3,0.05062983]
[1674153182865,6.58278,1534.5,1534.3,0.05062983]
[1674153185659,7.94978,1534.5,1534.3,0.05062983]
[1674153188143,6.58278,1534.5,1534.3,0.05062983]
[1674153192598,0.066,1534.5,1534.4,3.29174759]
[1674153192852,6.5826,1534.6,1534.4,3.29174759]
[1674153193668,13.09928,1534.6,1534.3,0.11662983]
[1674153194026,14.45328,1534.6,1534.3,3.34237742]
[1674153194213,14.45328,1534.6,1534.3,0.05062983]
[1674153194383,13.09928,1534.6,1534.3,0.05062983]
[1674153194751,1.5,1534.5,1534.3,0.05062983]
[1674153195061,15.88797,1534.5,1534.3,0.05062983]
[1674153195283,16.44277,1534.5,1534.3,0.05062983]
[1674153195439,16.44277,1534.5,1534.3,0.04805321]
[1674153197021,14.4014,1534.4,1534.3,0.04805321]
[1674153197174,14.9562,1534.4,1534.3,0.04805321]
[1674153197597,1.5,1534.3,1534.2,0.04860736]
[1674153197822,19.38716,1534.3,1534.2,0.04860736]
[1674153198008,19.45316,1534.3,1534.2,0.04860736]
[1674153199833,19.68316,1534.3,1534.2,0.04860736]
[1674153200059,29.61496,1534.3,1534.2,0.04860736]
[1674153204409,30.90499792,1534.3,1534.2,0.04860736]
[1674153204695,29.61496,1534.3,1534.2,0.04860736]
[1674153204923,30.90499892,1534.3,1534.2,0.04860736]
[1674153205137,29.61496,1534.3,1534.2,0.04860736]
[1674153206509,31.78367831,1534.3,1534.2,0.04860736]
[1674153206727,35.41513149,1534.3,1534.1,0.05177963]
[1674153206937,11.41978127,1534.2,1534.1,0.0018481]
[1674153207107,27.52188127,1534.2,1534.1,0.0018481]
[1674153207519,28.1788137,1534.2,1534.1,0.0018481]
[1674153208217,28.17856702,1534.2,1534.1,0.0018481]
[1674153208575,26.28007768,1534.2,1534.1,0.0018481]
[1674153209355,23.92016962,1534.2,1534.1,0.0018481]
[1674153209525,22.98833009,1534.2,1534.1,0.0018481]
[1674153210196,23.26320717,1534.2,1534.1,0.0018481]
[1674153211364,14.948,1534.2,1534.1,0.0018481]
[1674153211574,14.4591,1534.2,1534.1,0.0018481]
[1674153212904,15.81964308,1534.2,1534.1,0.0018481]
[1674153213214,13.1021,1534.2,1534.1,0.0018481]
[1674153214412,13.1021,1534.2,1534.1,0.8098481]
[1674153215459,13.1021,1534.2,1534.1,0.0018481]
[1674153216246,14.46278896,1534.2,1534.1,0.0018481]
[1674153216611,13.1021,1534.2,1534.1,0.0018481]
[1674153217209,6.58405,1534.2,1534.1,0.7908481]
[1674153217657,6.58405,1534.2,1534.1,0.0018481]
[1674153217819,6.58405,1534.2,1534.1,0.8098481]
[1674153218621,0.066,1534.2,1534.1,0.8098481]
[1674153218924,6.58363,1534.3,1534.1,0.8098481]
[1674153219500,0.066,1534.3,1534.2,3.29174759]
[1674153219709,8.02605244,1534.5,1534.2,3.29174759]
[1674153219710,6.58288,1534.5,1534.2,3.29174759]
[1674153220189,7.26288161,1534.5,1534.2,3.29174759]
[1674153220357,6.58288,1534.5,1534.2,4.42486644]
[1674153220561,0.066,1534.5,1534.3,3.29174759]
[1674153220814,7.26268161,1534.6,1534.3,3.29174759]
[1674153220973,7.26268161,1534.6,1534.3,5.87441423]
[1674153221185,1.36087204,1534.5,1534.3,5.94041423]
[1674153221532,0.68000161,1534.5,1534.3,5.94041423]
[1674153221915,7.26268161,1534.6,1534.3,7.44041423]
[1674153222163,8.28305405,1534.6,1534.4,3.29174759]
[1674153222391,1.08637244,1534.6,1534.5,3.29174759]
[1674153222559,2.38257747,1534.6,1534.5,3.29174759]
[1674153222827,2.04321678,1534.6,1534.4,0.81004142]
[1674153223010,2.04321678,1534.6,1534.2,29.05287885]
[1674153223011,1.70400461,1534.5,1534.2,29.05287885]
[1674153223217,0.68158951,1534.5,1534.3,3.29174759]
[1674153223426,1.31023169,1534.5,1534.3,3.29174759]
[1674153223649,2.33264679,1534.5,1534.3,3.29174759]
[1674153223863,0.68158951,1534.4,1534.3,3.29174759]
[1674153224184,0.62864218,1534.4,1534.2,20.0348]
[1674153224411,0.68172151,1534.3,1534.2,0.066]
[1674153224546,2.33277879,1534.3,1534.1,0.0018481]
[1674153224756,3.83277879,1534.3,1534.1,0.0018481]
[1674153225015,3.20413661,1534.3,1534.1,0.0018481]
[1674153225559,9.72176661,1534.3,1534.1,0.0018481]
[1674153225718,1.31051802,1534.2,1534.1,0.0018481]
[1674153226072,2.18172151,1534.2,1534.1,0.0018481]
[1674153226229,2.81051613,1534.2,1534.1,0.0018481]
[1674153228406,1.31051613,1534.2,1534.1,0.0018481]
[1674153228974,9.78776661,1534.3,1534.1,0.0018481]
[1674153229147,1.5,1534.2,1534.1,0.0018481]
[1674153229356,9.78776661,1534.3,1534.1,0.8098481]
[1674153231716,1.31086343,1534.2,1534.1,0.0018481]
[1674153231867,2.33327853,1534.2,1534.1,0.0018481]
[1674153232078,3.15155702,1534.2,1534.1,0.0018481]
[1674153232722,1.65155702,1534.2,1534.1,0.0018481]
[1674153233180,3.15155702,1534.2,1534.1,0.0018481]
[1674153233766,4.51410496,1534.2,1534.1,0.0018481]
[1674153233967,3.15155702,1534.2,1534.1,0.0018481]
[1674153234567,4.51410496,1534.2,1534.1,0.0018481]
[1674153235175,10.00973986,1534.2,1534.1,0.0018481]
[1674153235364,11.77892478,1534.2,1534.1,0.0018481]
[1674153235569,10.27892478,1534.2,1534.1,0.0018481]
[1674153235908,8.23749296,1534.2,1534.1,0.0018481]
[1674153236741,9.73749296,1534.2,1534.1,0.0018481]
[1674153237611,10.07573986,1534.2,1534.1,0.0018481]
[1674153239820,10.07573986,1534.2,1534.0,0.05162773]
[1674153239821,1.5,1534.1,1534.0,0.05162773]
[1674153239968,11.03787025,1534.1,1534.0,0.05162773]
[1674153240178,10.07947382,1534.1,1534.0,0.05162773]
[1674153241017,9.73798723,1534.1,1534.0,0.05162773]
[1674153241227,10.07947382,1534.1,1534.0,0.05162773]
[1674153241907,9.73790958,1534.1,1534.0,0.05162773]
[1674153242074,8.23790958,1534.1,1534.0,0.05162773]
[1674153242288,8.92076884,1534.1,1534.0,0.05162773]
[1674153242499,7.89647118,1534.1,1534.0,0.05162773]
[1674153243336,7.89647118,1534.1,1534.0,0.85962773]
[1674153243337,0.066,1534.1,1534.0,0.85962773]
[1674153243716,0.62959803,1534.1,1534.0,0.9455905]
[1674153243864,7.26690926,1534.2,1534.0,0.85962773]
[1674153244335,8.29120692,1534.2,1534.0,0.85962773]
[1674153244655,0.066,1534.2,1534.0,4.15137532]
[1674153244874,15.48958926,1534.3,1534.0,4.15137532]
[1674153245390,16.4228978,1534.3,1534.0,4.15137532]
[1674153245548,7.75538926,1534.3,1534.0,4.15137532]
[1674153245760,7.75538926,1534.3,1534.0,6.19283985]
[1674153245969,7.75538926,1534.3,1534.0,6.25883985]
[1674153246226,0.68285926,1534.2,1534.0,6.25883985]
[1674153246450,1.31244066,1534.2,1534.0,4.21737532]
[1674153246600,2.81244066,1534.2,1534.0,4.15137532]
[1674153246809,1.31242194,1534.1,1534.0,0.05162773]
[1674153247090,7.83089194,1534.1,1534.0,0.05162773]
[1674153247228,8.23833034,1534.1,1534.0,0.05162773]
[1674153247641,16.25458796,1534.1,1534.0,0.05162773]
[1674153247912,17.62044986,1534.1,1534.0,0.05162773]
[1674153248086,16.5961522,1534.1,1534.0,0.05162773]
[1674153248293,16.93347522,1534.1,1534.0,0.05162773]
[1674153248506,18.29968669,1534.1,1534.0,0.05162773]
[1674153248720,18.78858669,1534.1,1534.0,0.05162773]
[1674153249120,19.72189523,1534.1,1534.0,0.05162773]
[1674153249809,18.35568376,1534.1,1534.0,0.05162773]
[1674153250024,18.00649884,1534.1,1534.0,0.05162773]
[1674153250241,0.79097759,1533.9,1533.8,0.05547418]
[1674153250387,23.56912356,1533.9,1533.8,0.05547418]
[1674153250605,25.61167005,1533.9,1533.8,0.05547418]
[1674153250971,25.61167005,1533.9,1533.8,0.00047418]
[1674153250972,26.84817856,1533.9,1533.8,0.00047418]
[1674153251159,34.55964613,1533.9,1533.8,0.00047418]
[1674153251383,37.63062932,1533.9,1533.8,0.00047418]
[1674153251559,35.92464613,1533.9,1533.8,0.00047418]
[1674153251776,35.92464613,1533.9,1533.5,0.0528403]
[1674153251777,48.79409267,1533.9,1533.5,0.0528403]
[1674153252020,4.08685802,1533.6,1533.5,0.0528403]
[1674153252185,31.22957252,1533.6,1533.5,0.0528403]
[1674153252400,32.24808209,1533.6,1533.5,0.0528403]
[1674153252608,28.34343252,1533.6,1533.5,0.0528403]
[1674153252911,14.61987139,1533.6,1533.5,0.0528403]
[1674153253134,14.27800886,1533.6,1533.5,0.0528403]
[1674153253756,15.98487139,1533.6,1533.5,0.0528403]
[1674153253962,27.54597252,1533.6,1533.5,0.0528403]
[1674153254177,28.43290495,1533.6,1533.5,0.0008403]
[1674153254433,29.36621349,1533.6,1533.5,0.0008403]
[1674153254644,30.72961698,1533.6,1533.5,0.0008403]
[1674153254815,14.54206,1533.5,1533.4,0.0516806]
[1674153255014,21.03281389,1533.5,1533.4,0.0516806]
[1674153255224,24.55447206,1533.5,1533.4,0.0516806]
[1674153255436,24.554465,1533.5,1533.4,0.0516806]
[1674153255712,28.05950022,1533.5,1533.3,0.00145978]
[1674153255852,9.39601228,1533.4,1533.2,0.06532353]
[1674153256063,1.5,1533.2,1533.1,0.06667067]
[1674153256270,18.2638,1533.2,1533.1,0.06667067]
[1674153256540,21.0488,1533.2,1533.1,0.06667067]
[1674153256749,17.9648,1533.2,1533.1,0.06667067]
[1674153256933,0.5552,1533.2,1533.1,0.06667067]
[1674153257155,7.07708,1533.3,1533.1,0.06667067]
[1674153257494,0.066,1533.3,1533.1,0.06667067]
[1674153257640,0.066,1533.4,1533.2,3.29174759]
[1674153257846,7.01047,1533.5,1533.2,3.29174759]
[1674153257847,0.066,1533.5,1533.2,3.29174759]
[1674153258056,7.267714,1533.6,1533.1,0.13067067]
[1674153258329,8.630714,1533.6,1533.1,3.35841826]
[1674153258492,1.5,1533.5,1533.1,3.35841826]
[1674153258696,8.02119,1533.5,1533.1,3.35841826]
[1674153259005,8.08719,1533.5,1533.1,3.35841826]
[1674153259217,15.97538,1533.5,1533.1,0.06667067]
[1674153259460,2.867,1533.3,1533.1,0.06667067]
[1674153259679,6.5223,1533.2,1533.1,0.06667067]
[1674153259843,6.5883,1533.2,1533.1,0.06667067]
[1674153260069,14.6106,1533.2,1533.1,0.06667067]
[1674153260750,15.9776,1533.2,1533.1,0.06667067]
[1674153260959,14.4776,1533.2,1533.1,0.06667067]